fUSD/lending_fUSD_20260529
["ID","MTS","AMOUNT","RATE_DAILY","PERIOD"]
[423285938,1780026653000,-150.0000009,0.00027727,2]
[423285928,1780026653000,-3872.03,0.00027711,7]
[423285943,1780026653000,-9063.10615215,0.00027727,2]
[423285963,1780026653000,-3860.42,0.00027872,2]
[423285923,1780026653000,-200.0,0.000277,2]
[423285924,1780026653000,-2173.70871819,0.000277,2]
[423285926,1780026653000,-642.43,0.00027702,30]
[423285925,1780026653000,-641.77,0.00027702,30]
[423285927,1780026653000,-3362.08,0.00027711,7]
[423285929,1780026653000,-4017.44,0.00027711,7]
[423285931,1780026653000,-3860.42,0.00027711,7]
[423285944,1780026653000,-641.77,0.00027733,2]
[423285932,1780026653000,-270.0455652,0.00027713,2]
[423285934,1780026653000,-1986.95529449,0.00027727,2]
[423285935,1780026653000,-5000.0,0.00027727,2]
[423285933,1780026653000,-199.45701529,0.00027726,30]
[423285936,1780026653000,-5000.0,0.00027727,2]
[423285940,1780026653000,-150.0,0.00027727,2]
[423285947,1780026653000,-642.43,0.00027763,7]
[423285941,1780026653000,-4848.86844459,0.00027727,2]
[423285937,1780026653000,-5024.24664656,0.00027727,2]
[423285930,1780026653000,-3773.83,0.00027711,7]
[423285966,1780026653000,-642.43,0.00027885,30]
[423285972,1780026653000,-1000.0,0.00027928,7]
[423285970,1780026653000,-598.35636073,0.00027918,2]
[423285994,1780026653000,-300.0,0.00028,2]
[423285990,1780026653000,-564.68005363,0.00028,2]
[423285991,1780026653000,-2348.32302681,0.00028,30]
[423285992,1780026653000,-160.0,0.00028,2]
[423285989,1780026653000,-150.0,0.00027982,2]
[423285993,1780026653000,-200.0,0.00028,7]
[423285996,1780026653000,-200.0,0.00028,7]
[423286007,1780026653000,-4017.44,0.00028033,30]
[423285997,1780026653000,-6580.74,0.00028,7]
[423286004,1780026653000,-642.43,0.00028007,2]
[423286000,1780026653000,-209.09056759,0.00028,30]
[423285998,1780026653000,-3699.58,0.00028,7]
[423286002,1780026653000,-209.09056759,0.00028,10]
[423285999,1780026653000,-643.0,0.00028,2]
[423286001,1780026653000,-600.0,0.00028,2]
[423286005,1780026653000,-3362.08,0.00028033,30]
[423286003,1780026653000,-641.77,0.00028007,2]
[423285965,1780026653000,-641.77,0.00027885,30]
[423286008,1780026653000,-3773.83,0.00028033,30]
[423285995,1780026653000,-500.0,0.00028,2]
[423285985,1780026653000,-150.0,0.00027982,2]
[423286006,1780026653000,-3872.03,0.00028033,30]
[423285986,1780026653000,-150.49028307,0.00027982,2]
[423285987,1780026653000,-193.8493153,0.00027982,2]
[423285967,1780026653000,-1000.0,0.00027912,7]
[423285964,1780026653000,-1000.0,0.00027885,7]
[423285969,1780026653000,-642.43,0.00027916,2]
[423285983,1780026653000,-150.0,0.00027982,2]
[423285982,1780026653000,-150.0,0.00027982,2]
[423285973,1780026653000,-446.94853584,0.00027945,30]
[423285971,1780026653000,-500.0,0.00027925,15]
[423285974,1780026653000,-641.77,0.00027946,7]
[423285968,1780026653000,-641.77,0.00027916,2]
[423285975,1780026653000,-642.43,0.00027946,7]
[423285980,1780026653000,-150.0,0.00027982,2]
[423285978,1780026653000,-152.95961522,0.00027982,2]
[423285976,1780026653000,-641.77,0.00027977,30]
[423285984,1780026653000,-150.0,0.00027982,2]
[423285981,1780026653000,-150.0,0.00027982,2]
[423285979,1780026653000,-150.0,0.00027982,2]
[423285988,1780026653000,-150.0,0.00027982,2]
[423285977,1780026653000,-642.43,0.00027977,30]
[423286036,1780026654000,-200.0,0.00028082,2]
[423286034,1780026654000,-356.73298615,0.00028082,2]
[423286032,1780026654000,-213.0,0.00028082,2]
[423286037,1780026654000,-200.0,0.00028082,2]
[423286049,1780026654000,-187.0,0.00028089,120]
[423286028,1780026654000,-233.67003424,0.00028081,2]
[423286027,1780026654000,-150.0,0.00028081,2]
[423286038,1780026654000,-1000.0,0.00028082,120]
[423286042,1780026654000,-1000.0,0.00028082,3]
[423286039,1780026654000,-1000.0,0.00028082,120]
[423286041,1780026654000,-522.80424404,0.00028082,120]
[423286040,1780026654000,-517.4481778,0.00028082,120]
[423286044,1780026654000,-1000.0,0.00028082,3]
[423286045,1780026654000,-1000.0,0.00028082,3]
[423286048,1780026654000,-3137.0,0.00028082,120]
[423286030,1780026654000,-2000.0,0.00028082,2]
[423286047,1780026654000,-1000.0,0.00028082,3]
[423286050,1780026654000,-267.0,0.00028089,120]
[423286031,1780026654000,-150.0,0.00028082,2]
[423286019,1780026654000,-641.77,0.00028068,30]
[423286029,1780026654000,-162.76332017,0.00028082,2]
[423286043,1780026654000,-2500.0,0.00028082,120]
[423286009,1780026654000,-3860.42,0.00028033,30]
[423286011,1780026654000,-642.43,0.00028038,7]
[423286010,1780026654000,-641.77,0.00028038,7]
[423286012,1780026654000,-179.99507723,0.00028067,2]
[423286013,1780026654000,-163.62490803,0.00028067,2]
[423286015,1780026654000,-162.76332017,0.00028068,30]
[423286017,1780026654000,-163.62490803,0.00028068,30]
[423286033,1780026654000,-302.46,0.00028082,2]
[423286018,1780026654000,-246.16637767,0.00028068,30]
[423286016,1780026654000,-179.99507723,0.00028068,30]
[423286021,1780026654000,-200.0,0.0002808,7]
[423286023,1780026654000,-200.98612082,0.0002808,7]
[423286022,1780026654000,-200.0,0.0002808,7]
[423286020,1780026654000,-642.43,0.00028068,30]
[423286024,1780026654000,-200.0,0.0002808,7]
[423286025,1780026654000,-513.94360888,0.0002808,5]
[423286026,1780026654000,-258.38816058,0.0002808,20]
[423286014,1780026654000,-246.16637767,0.00028067,2]
[423286046,1780026654000,-1000.0,0.00028082,3]
[423286035,1780026654000,-200.0,0.00028082,2]
[423286054,1780026654000,-641.77,0.00028099,2]
[423286074,1780026654000,-3872.03,0.00028194,7]
[423286076,1780026654000,-3773.83,0.00028194,7]
[423286078,1780026654000,-301.05237461,0.000282,7]
[423286079,1780026654000,-152.18993929,0.000282,20]
[423286077,1780026654000,-3860.42,0.00028194,7]
[423286080,1780026654000,-2332.95,0.000282,14]
[423286082,1780026654000,-162.0,0.00028259,120]
[423286085,1780026654000,-163.0,0.00028267,120]
[423286072,1780026654000,-152.0,0.00028179,17]
[423286083,1780026654000,-337.28186717,0.00028261,2]
[423286086,1780026654000,-8056.7,0.00028267,2]
[423286089,1780026654000,-167.0,0.00028279,120]
[423286090,1780026654000,-328.0,0.00028284,120]
[423286088,1780026654000,-3000.0,0.00028275,60]
[423286087,1780026654000,-243.0,0.00028272,120]
[423286092,1780026654000,-150.0,0.00028301,120]
[423286091,1780026654000,-439.71865913,0.00028297,120]
[423286051,1780026654000,-400.0,0.00028089,120]
[423286081,1780026654000,-222.0,0.00028237,120]
[423286071,1780026654000,-513.0,0.00028165,120]
[423286084,1780026654000,-437.0,0.00028264,120]
[423286073,1780026654000,-3362.08,0.00028194,7]
[423286055,1780026654000,-642.43,0.00028099,2]
[423286070,1780026654000,-650.0,0.00028165,120]
[423286053,1780026654000,-259.0,0.00028089,120]
[423286056,1780026654000,-150.0,0.0002813,7]
[423286060,1780026654000,-1159.34,0.00028134,7]
[423286057,1780026654000,-641.96,0.0002813,7]
[423286059,1780026654000,-1059.59,0.00028134,7]
[423286061,1780026654000,-1182.1,0.00028134,7]
[423286052,1780026654000,-400.0,0.00028089,120]
[423286058,1780026654000,-642.45,0.0002813,7]
[423286062,1780026654000,-568.63,0.00028134,7]
[423286065,1780026654000,-163.14518308,0.00028155,30]
[423286066,1780026654000,-217.95494647,0.00028155,30]
[423286064,1780026654000,-184.07449917,0.00028155,30]
[423286069,1780026654000,-650.0,0.00028165,120]
[423286093,1780026654000,-274.38285475,0.00028301,120]
[423286075,1780026654000,-4017.44,0.00028194,7]
[423286063,1780026654000,-162.04364013,0.00028155,30]
[423286067,1780026654000,-212.0,0.00028159,120]
[423286068,1780026654000,-173.0,0.00028165,120]
[423286124,1780026655000,-168.0,0.00028475,120]
[423286129,1780026655000,-150.0,0.000285,120]
[423286130,1780026655000,-1200.0,0.000285,2]
[423286131,1780026655000,-3620.49,0.000285,14]
[423286125,1780026655000,-247.0,0.00028482,120]
[423286127,1780026655000,-168.09,0.00028493,2]
[423286121,1780026655000,-1213.0,0.00028427,120]
[423286126,1780026655000,-168.0,0.00028487,120]
[423286132,1780026655000,-987.27,0.00028501,7]
[423286128,1780026655000,-500.0,0.000285,2]
[423286133,1780026655000,-1063.04,0.00028501,7]
[423286143,1780026655000,-151.98094989,0.00028511,7]
[423286135,1780026655000,-180.85400471,0.00028501,7]
[423286137,1780026655000,-192.01891327,0.0002851,7]
[423286134,1780026655000,-173.91678052,0.00028501,7]
[423286138,1780026655000,-314.70088548,0.00028511,7]
[423286140,1780026655000,-356.78093147,0.00028511,7]
[423286139,1780026655000,-265.54558871,0.00028511,7]
[423286141,1780026655000,-164.19586296,0.00028511,7]
[423286142,1780026655000,-187.64296938,0.00028511,7]
[423286147,1780026655000,-192.52922732,0.00028511,7]
[423286144,1780026655000,-328.35556207,0.00028511,7]
[423286120,1780026655000,-2593.0,0.00028426,120]
[423286136,1780026655000,-649.0,0.00028502,120]
[423286123,1780026655000,-214.0,0.00028431,120]
[423286099,1780026655000,-1143.12,0.00028344,7]
[423286117,1780026655000,-176.07942774,0.00028397,7]
[423286096,1780026655000,-167.0,0.00028323,120]
[423286097,1780026655000,-1815.0,0.0002834,120]
[423286098,1780026655000,-1079.06,0.00028344,7]
[423286095,1780026655000,-1271.0,0.00028305,120]
[423286094,1780026655000,-177.0,0.00028302,120]
[423286100,1780026655000,-1117.1,0.00028344,7]
[423286146,1780026655000,-158.62281654,0.00028511,7]
[423286110,1780026655000,-357.55882867,0.00028356,30]
[423286101,1780026655000,-500.78,0.00028344,7]
[423286102,1780026655000,-200.0,0.00028345,2]
[423286103,1780026655000,-169.0,0.00028349,120]
[423286108,1780026655000,-3860.42,0.00028355,2]
[423286109,1780026655000,-177.77996801,0.00028356,30]
[423286104,1780026655000,-3362.08,0.00028355,2]
[423286107,1780026655000,-3773.83,0.00028355,2]
[423286106,1780026655000,-4017.44,0.00028355,2]
[423286105,1780026655000,-3872.03,0.00028355,2]
[423286111,1780026655000,-1353.67785538,0.00028363,2]
[423286113,1780026655000,-200.0,0.00028363,2]
[423286112,1780026655000,-200.0,0.00028363,2]
[423286114,1780026655000,-200.0,0.00028363,2]
[423286119,1780026655000,-168.0,0.00028425,120]
[423286118,1780026655000,-948.0,0.00028411,5]
[423286115,1780026655000,-405.0,0.00028381,120]
[423286116,1780026655000,-306.0,0.00028383,120]
[423286122,1780026655000,-167.0,0.0002843,120]
[423286145,1780026655000,-182.4797766,0.00028511,2]
[423286150,1780026655000,-190.33090994,0.00028511,7]
[423286148,1780026655000,-175.0478619,0.00028511,7]
[423286176,1780026655000,-3362.08,0.00028516,30]
[423286179,1780026655000,-3773.83,0.00028516,30]
[423286180,1780026655000,-3860.42,0.00028516,30]
[423286181,1780026655000,-186.07135239,0.00028523,7]
[423286183,1780026655000,-411.0,0.00028535,120]
[423286182,1780026655000,-186.87451899,0.00028529,5]
[423286186,1780026655000,-165.02368299,0.00028545,7]
[423286188,1780026655000,-191.91960743,0.00028556,7]
[423286191,1780026655000,-168.0,0.00028582,120]
[423286198,1780026655000,-685.0,0.00028629,120]
[423286190,1780026655000,-1196.0,0.00028582,120]
[423286189,1780026655000,-150.0,0.00028569,7]
[423286187,1780026655000,-152.28468194,0.00028545,7]
[423286192,1780026655000,-500.0,0.00028582,120]
[423286194,1780026655000,-3699.58,0.000286,7]
[423286195,1780026655000,-2332.95,0.000286,14]
[423286196,1780026655000,-660.16406009,0.00028608,5]
[423286193,1780026655000,-6580.74,0.000286,7]
[423286200,1780026655000,-200.0,0.00028646,2]
[423286201,1780026655000,-200.0,0.00028646,2]
[423286202,1780026655000,-200.0,0.00028646,2]
[423286203,1780026655000,-1338.0,0.00028677,120]
[423286199,1780026655000,-1338.0124375,0.00028646,15]
[423286204,1780026655000,-3362.08,0.00028677,7]
[423286149,1780026655000,-202.25494561,0.00028511,7]
[423286177,1780026655000,-3872.03,0.00028516,30]
[423286178,1780026655000,-4017.44,0.00028516,30]
[423286197,1780026655000,-168.0,0.00028608,120]
[423286173,1780026655000,-217.44533831,0.00028513,7]
[423286152,1780026655000,-205.89387837,0.00028511,7]
[423286175,1780026655000,-199.70068572,0.00028513,7]
[423286151,1780026655000,-170.4118041,0.00028511,7]
[423286158,1780026655000,-150.49798279,0.00028513,7]
[423286157,1780026655000,-191.11977874,0.00028511,7]
[423286159,1780026655000,-158.81553262,0.00028513,7]
[423286153,1780026655000,-152.74726053,0.00028511,7]
[423286156,1780026655000,-172.18046261,0.00028511,7]
[423286154,1780026655000,-164.33354146,0.00028511,7]
[423286160,1780026655000,-153.02264896,0.00028513,7]
[423286161,1780026655000,-153.44131016,0.00028513,7]
[423286171,1780026655000,-162.03706712,0.00028513,7]
[423286167,1780026655000,-158.76099832,0.00028513,7]
[423286155,1780026655000,-197.14485582,0.00028511,7]
[423286164,1780026655000,-205.81059355,0.00028513,7]
[423286185,1780026655000,-176.83064221,0.00028541,7]
[423286174,1780026655000,-186.43361922,0.00028513,7]
[423286168,1780026655000,-154.52712352,0.00028513,7]
[423286172,1780026655000,-159.08763722,0.00028513,7]
[423286170,1780026655000,-207.45988435,0.00028513,7]
[423286184,1780026655000,-169.410686,0.00028541,7]
[423286166,1780026655000,-177.01374539,0.00028513,7]
[423286165,1780026655000,-166.02908896,0.00028513,7]
[423286169,1780026655000,-177.35345015,0.00028513,7]
[423286162,1780026655000,-165.28783929,0.00028513,7]
[423286163,1780026655000,-208.83692504,0.00028513,7]
[423286244,1780026656000,-948.0,0.00028965,6]
[423286243,1780026656000,-271.68,0.00028962,15]
[423286238,1780026656000,-200.0,0.00028933,2]
[423286247,1780026656000,-215.68,0.00028973,7]
[423286245,1780026656000,-167.00015065,0.00028971,2]
[423286241,1780026656000,-1145.54,0.00028953,7]
[423286246,1780026656000,-188.44606373,0.00028971,2]
[423286240,1780026656000,-1123.48,0.00028953,7]
[423286239,1780026656000,-1026.81,0.00028953,7]
[423286249,1780026656000,-200.0,0.00029,2]
[423286242,1780026656000,-551.05,0.00028953,7]
[423286248,1780026656000,-177.744918,0.00028997,7]
[423286251,1780026656000,-200.0,0.00029,2]
[423286264,1780026656000,-1734.2834332,0.00029,2]
[423286254,1780026656000,-2762.95,0.00029,2]
[423286257,1780026656000,-952.01567664,0.00029,2]
[423286250,1780026656000,-200.0,0.00029,2]
[423286261,1780026656000,-2382.26336414,0.00029,2]
[423286256,1780026656000,-1370.31353273,0.00029,2]
[423286252,1780026656000,-2762.94,0.00029,2]
[423286255,1780026656000,-2762.94,0.00029,2]
[423286260,1780026656000,-152.9,0.00029,2]
[423286258,1780026656000,-513.10554708,0.00029,2]
[423286259,1780026656000,-2285.09384834,0.00029,120]
[423286262,1780026656000,-907.21153884,0.00029,2]
[423286265,1780026656000,-300.0,0.00029,2]
[423286237,1780026656000,-200.0,0.00028933,2]
[423286253,1780026656000,-2762.94,0.00029,2]
[423286229,1780026656000,-3773.83,0.00028838,2]
[423286208,1780026656000,-3860.42,0.00028677,7]
[423286231,1780026656000,-168.0,0.00028839,120]
[423286210,1780026656000,-481.48,0.00028693,15]
[423286205,1780026656000,-3872.03,0.00028677,7]
[423286207,1780026656000,-3773.83,0.00028677,7]
[423286206,1780026656000,-4017.44,0.00028677,7]
[423286209,1780026656000,-168.0,0.00028688,120]
[423286211,1780026656000,-251.0,0.00028707,120]
[423286213,1780026656000,-500.0,0.00028763,17]
[423286214,1780026656000,-2326.98902491,0.00028767,30]
[423286273,1780026656000,-195.97,0.00029,2]
[423286217,1780026656000,-176.0,0.00028767,120]
[423286218,1780026656000,-700.0,0.00028767,120]
[423286216,1780026656000,-167.57162334,0.00028767,2]
[423286219,1780026656000,-700.0,0.00028767,120]
[423286232,1780026656000,-150.0,0.00028855,2]
[423286212,1780026656000,-152.0,0.00028756,18]
[423286222,1780026656000,-173.0,0.00028767,14]
[423286220,1780026656000,-567.0,0.00028767,120]
[423286221,1780026656000,-2198.0,0.00028767,120]
[423286225,1780026656000,-419.0,0.00028772,120]
[423286236,1780026656000,-200.0,0.000289,2]
[423286224,1780026656000,-500.0,0.00028767,7]
[423286228,1780026656000,-4017.44,0.00028838,2]
[423286235,1780026656000,-150.0,0.00028897,2]
[423286226,1780026656000,-3362.08,0.00028838,2]
[423286234,1780026656000,-4159.0,0.00028856,2]
[423286227,1780026656000,-3872.03,0.00028838,2]
[423286230,1780026656000,-3860.42,0.00028838,2]
[423286233,1780026656000,-150.0,0.00028855,2]
[423286223,1780026656000,-268.1691215,0.00028767,30]
[423286263,1780026656000,-273.3521427,0.00029,2]
[423286215,1780026656000,-167.57162334,0.00028767,30]
[423286266,1780026656000,-1101.0,0.00029,2]
[423286303,1780026656000,-1250.0,0.00029,20]
[423286310,1780026656000,-10000.0,0.00029,2]
[423286311,1780026656000,-2000.0,0.00029,2]
[423286301,1780026656000,-1796.98,0.00029,7]
[423286304,1780026656000,-983.78,0.00029,2]
[423286309,1780026656000,-1000.0,0.00029,2]
[423286307,1780026656000,-160.4,0.00029,45]
[423286308,1780026656000,-735.0,0.00029,2]
[423286306,1780026656000,-494.1,0.00029,2]
[423286305,1780026656000,-643.98489832,0.00029,2]
[423286312,1780026656000,-298.92,0.00029,2]
[423286316,1780026656000,-215.5484138,0.00029,3]
[423286324,1780026656000,-151.613884,0.00029,7]
[423286302,1780026656000,-209.09056759,0.00029,30]
[423286314,1780026656000,-418.56,0.00029,2]
[423286321,1780026656000,-568.14,0.00029,2]
[423286313,1780026656000,-2488.0,0.00029,2]
[423286317,1780026656000,-2500.0,0.00029,2]
[423286322,1780026656000,-1000.0,0.00029,2]
[423286319,1780026656000,-508.3,0.00029,2]
[423286320,1780026656000,-2058.70431921,0.00029,2]
[423286315,1780026656000,-2500.0,0.00029,2]
[423286326,1780026656000,-151.613884,0.00029,7]
[423286327,1780026656000,-605.54,0.00029,2]
[423286328,1780026656000,-2500.0,0.00029,2]
[423286329,1780026656000,-289.12844,0.00029,7]
[423286325,1780026656000,-151.613884,0.00029,7]
[423286267,1780026656000,-2001.96750857,0.00029,2]
[423286323,1780026656000,-151.613884,0.00029,7]
[423286299,1780026656000,-2500.0,0.00029,2]
[423286318,1780026656000,-1400.23,0.00029,30]
[423286297,1780026656000,-76619.36389828,0.00029,2]
[423286300,1780026656000,-1000.0,0.00029,2]
[423286270,1780026656000,-5115.4,0.00029,2]
[423286268,1780026656000,-557.05,0.00029,2]
[423286272,1780026656000,-200.0,0.00029,2]
[423286269,1780026656000,-170.0,0.00029,120]
[423286271,1780026656000,-200.0,0.00029,2]
[423286275,1780026656000,-200.0,0.00029,2]
[423286286,1780026656000,-930.00407423,0.00029,2]
[423286280,1780026656000,-1000.0,0.00029,2]
[423286278,1780026656000,-743.86583086,0.00029,2]
[423286282,1780026656000,-1581.87672119,0.00029,2]
[423286277,1780026656000,-1000.0,0.00029,2]
[423286283,1780026656000,-962.59383606,0.00029,2]
[423286276,1780026656000,-1114.79,0.00029,2]
[423286285,1780026656000,-930.08148459,0.00029,2]
[423286274,1780026656000,-2500.0,0.00029,2]
[423286295,1780026656000,-219.53728179,0.00029,2]
[423286281,1780026656000,-1013.15,0.00029,2]
[423286298,1780026656000,-1564.41427614,0.00029,2]
[423286294,1780026656000,-2332.95,0.00029,14]
[423286296,1780026656000,-510.66835475,0.00029,2]
[423286290,1780026656000,-178.20382452,0.00029,2]
[423286292,1780026656000,-3000.0,0.00029,2]
[423286288,1780026656000,-157.00449047,0.00029,2]
[423286289,1780026656000,-1915.0,0.00029,2]
[423286291,1780026656000,-224.58,0.00029,2]
[423286287,1780026656000,-930.00020371,0.00029,2]
[423286279,1780026656000,-483.50090814,0.00029,2]
[423286284,1780026656000,-931.6296918,0.00029,2]
[423286293,1780026656000,-500.0,0.00029,2]
[423286350,1780026657000,-1000.0,0.00029,2]
[423286349,1780026657000,-240.45,0.00029,8]
[423286352,1780026657000,-157.0,0.00029,2]
[423286355,1780026657000,-157.0,0.00029,2]
[423286354,1780026657000,-157.0,0.00029,2]
[423286347,1780026657000,-899.662535,0.00029,7]
[423286357,1780026657000,-157.0,0.00029,2]
[423286360,1780026657000,-157.0,0.00029,2]
[423286358,1780026657000,-157.0,0.00029,2]
[423286359,1780026657000,-157.0,0.00029,2]
[423286361,1780026657000,-157.0,0.00029,2]
[423286362,1780026657000,-157.0,0.00029,2]
[423286363,1780026657000,-157.0,0.00029,2]
[423286351,1780026657000,-167.0,0.00029,2]
[423286364,1780026657000,-500.0,0.00029,2]
[423286356,1780026657000,-157.0,0.00029,2]
[423286353,1780026657000,-157.0,0.00029,2]
[423286332,1780026657000,-289.12844,0.00029,7]
[423286346,1780026657000,-899.662535,0.00029,7]
[423286366,1780026657000,-151.0,0.00029,7]
[423286331,1780026657000,-289.12844,0.00029,7]
[423286330,1780026657000,-289.12844,0.00029,7]
[423286334,1780026657000,-151.0,0.00029,7]
[423286333,1780026657000,-617.382173,0.00029,7]
[423286335,1780026657000,-617.382173,0.00029,7]
[423286340,1780026657000,-372.127038,0.00029,7]
[423286348,1780026657000,-240.45,0.00029,8]
[423286337,1780026657000,-1000.0,0.00029,2]
[423286336,1780026657000,-617.382173,0.00029,7]
[423286338,1780026657000,-617.382173,0.00029,7]
[423286342,1780026657000,-372.127038,0.00029,7]
[423286339,1780026657000,-372.127038,0.00029,7]
[423286343,1780026657000,-1000.0,0.00029,2]
[423286344,1780026657000,-899.662535,0.00029,7]
[423286345,1780026657000,-899.662535,0.00029,7]
[423286341,1780026657000,-372.127038,0.00029,7]
[423286365,1780026657000,-1000.0,0.00029,2]
[423286377,1780026657000,-4503.27412532,0.00029,2]
[423286369,1780026657000,-209.09056759,0.00029,3]
[423286385,1780026657000,-2014.53324,0.00029,2]
[423286392,1780026657000,-151.0,0.00029004,7]
[423286391,1780026657000,-151.0,0.00029004,7]
[423286402,1780026657000,-261.95270689,0.0002901,30]
[423286393,1780026657000,-151.0,0.00029004,7]
[423286394,1780026657000,-158.692123,0.00029004,7]
[423286395,1780026657000,-158.692123,0.00029004,7]
[423286380,1780026657000,-3773.86,0.00029,30]
[423286401,1780026657000,-150.0,0.00029009,7]
[423286398,1780026657000,-1400.23,0.00029004,30]
[423286397,1780026657000,-158.692123,0.00029004,7]
[423286399,1780026657000,-1400.23,0.00029006,30]
[423286403,1780026657000,-1400.23,0.0002901,30]
[423286405,1780026657000,-1400.23,0.00029014,30]
[423286404,1780026657000,-1400.23,0.00029012,30]
[423286376,1780026657000,-3190.23638862,0.00029,2]
[423286400,1780026657000,-1400.23,0.00029008,30]
[423286387,1780026657000,-2014.53324,0.00029,2]
[423286396,1780026657000,-158.692123,0.00029004,7]
[423286386,1780026657000,-2014.53324,0.00029,2]
[423286368,1780026657000,-151.0,0.00029,7]
[423286390,1780026657000,-151.0,0.00029004,7]
[423286372,1780026657000,-3889.01,0.00029,30]
[423286378,1780026657000,-331.3543617,0.00029,2]
[423286371,1780026657000,-155.0,0.00029,2]
[423286375,1780026657000,-4017.49,0.00029,30]
[423286370,1780026657000,-1000.0,0.00029,2]
[423286374,1780026657000,-3872.07,0.00029,30]
[423286367,1780026657000,-10488.45,0.00029,7]
[423286383,1780026657000,-3362.13,0.00029,30]
[423286381,1780026657000,-3860.48,0.00029,30]
[423286379,1780026657000,-193.88359574,0.00029,2]
[423286382,1780026657000,-2000.0,0.00029,2]
[423286389,1780026657000,-1400.23,0.00029002,30]
[423286384,1780026657000,-2014.53324,0.00029,2]
[423286373,1780026657000,-4005.1,0.00029,30]
[423286388,1780026657000,-2014.53324,0.00029,2]
[423286446,1780026658000,-1400.23,0.00029088,30]
[423286448,1780026658000,-1400.23,0.00029092,30]
[423286443,1780026658000,-1400.23,0.00029082,30]
[423286447,1780026658000,-1400.23,0.0002909,30]
[423286445,1780026658000,-1400.23,0.00029086,30]
[423286440,1780026658000,-1400.23,0.00029076,30]
[423286441,1780026658000,-1400.23,0.00029078,30]
[423286450,1780026658000,-1400.23,0.00029094,30]
[423286449,1780026658000,-1616.0,0.00029094,120]
[423286442,1780026658000,-1400.23,0.0002908,30]
[423286439,1780026658000,-1400.23,0.00029073,30]
[423286438,1780026658000,-1400.23,0.00029071,30]
[423286444,1780026658000,-1400.23,0.00029084,30]
[423286454,1780026658000,-3000.0,0.00029097,60]
[423286453,1780026658000,-157.00449047,0.00029097,30]
[423286464,1780026658000,-446.0,0.00029204,120]
[423286457,1780026658000,-200.04,0.000291,2]
[423286452,1780026658000,-208.39460683,0.00029097,30]
[423286456,1780026658000,-402.83,0.000291,2]
[423286460,1780026658000,-1107.76,0.0002917,7]
[423286455,1780026658000,-1400.23,0.00029098,30]
[423286462,1780026658000,-485.29,0.0002917,7]
[423286459,1780026658000,-1045.68,0.0002917,7]
[423286461,1780026658000,-1082.55,0.0002917,7]
[423286458,1780026658000,-200.0,0.00029137,2]
[423286433,1780026658000,-1400.23,0.00029065,30]
[423286451,1780026658000,-1400.23,0.00029096,30]
[423286436,1780026658000,-1400.23,0.00029067,30]
[423286425,1780026658000,-1400.23,0.00029049,30]
[423286430,1780026658000,-1400.23,0.00029059,30]
[423286475,1780026658000,-804.17102365,0.00029354,2]
[423286407,1780026658000,-1400.23,0.00029016,30]
[423286408,1780026658000,-1400.23,0.00029018,30]
[423286406,1780026658000,-1369.0,0.00029016,120]
[423286409,1780026658000,-1400.23,0.0002902,30]
[423286412,1780026658000,-1400.23,0.00029027,30]